[Event "*** Titled Tuesday Blitz"]
[Site "Chess.com"]
[Date "2018.08.07"]
[Round "2"]
[White "Titus369"]
[Black "CarlssonLudvig"]
[Result "0-1"]
[WhiteElo "2195"]
[BlackElo "2213"]
[TimeControl "180+2"]
[EndTime "13:22:01 PDT"]
[Termination "CarlssonLudvig won by resignation"]

1. e4 {[%clk 0:03:01.9]} 1... e5 {[%clk 0:02:59.6]} 2. Nf3 {[%clk 0:03:03]} 2...
Nc6 {[%clk 0:03:00.6]} 3. Bb5 {[%clk 0:03:04.3]} 3... a6 {[%clk 0:02:59.6]} 4.
Ba4 {[%clk 0:03:05.3]} 4... Nf6 {[%clk 0:03:00.4]} 5. O-O {[%clk 0:02:56.5]}
5... d6 {[%clk 0:03:01.7]} 6. c3 {[%clk 0:02:49]} 6... Nxe4 {[%clk 0:03:02.5]}
7. d4 {[%clk 0:02:45.1]} 7... Bd7 {[%clk 0:03:03.4]} 8. Bxc6 {[%clk 0:02:35.9]}
8... Bxc6 {[%clk 0:03:04.1]} 9. Re1 {[%clk 0:02:25.6]} 9... Nf6 {[%clk
0:02:59.1]} 10. dxe5 {[%clk 0:02:23.7]} 10... dxe5 {[%clk 0:02:59.9]} 11. Rxe5+
{[%clk 0:02:22.6]} 11... Be7 {[%clk 0:02:59.1]} 12. Qe1 {[%clk 0:02:18.5]} 12...
Qd7 {[%clk 0:02:47.9]} 13. Nd4 {[%clk 0:02:12.5]} 13... Kf8 {[%clk 0:02:32.5]}
14. Nxc6 {[%clk 0:01:59]} 14... bxc6 {[%clk 0:02:32.7]} 15. Bg5 {[%clk
0:01:54.8]} 15... h6 {[%clk 0:02:30.4]} 16. Bh4 {[%clk 0:01:51]} 16... Re8
{[%clk 0:02:28]} 17. Nd2 {[%clk 0:01:42.1]} 17... g6 {[%clk 0:02:23.8]} 18. Nb3
{[%clk 0:01:32.4]} 18... Kg7 {[%clk 0:02:22.2]} 19. Rd1 {[%clk 0:01:29.7]} 19...
Bd6 {[%clk 0:02:18.5]} 20. Rxe8 {[%clk 0:01:29.8]} 20... Rxe8 {[%clk 0:02:18]}
21. Qd2 {[%clk 0:01:26.2]} 21... Qg4 {[%clk 0:01:42.9]} 22. Bg3 {[%clk
0:01:14.1]} 22... Bxg3 {[%clk 0:01:38.4]} 23. hxg3 {[%clk 0:01:16]} 23... Re2
{[%clk 0:01:36.3]} 24. Qd3 {[%clk 0:00:46.8]} 24... Rxb2 {[%clk 0:01:30.1]} 25.
Re1 {[%clk 0:00:45.9]} 25... Rxa2 {[%clk 0:01:27.6]} 26. Nc5 {[%clk 0:00:39.7]}
26... Qf5 {[%clk 0:01:15.4]} 27. Qd4 {[%clk 0:00:37.3]} 27... Ra5 {[%clk
0:00:58.5]} 28. Nb3 {[%clk 0:00:19.1]} 28... Rd5 {[%clk 0:00:58.1]} 29. Qc4
{[%clk 0:00:18.5]} 29... Re5 {[%clk 0:00:51.1]} 30. Rf1 {[%clk 0:00:15.2]} 30...
Qe6 {[%clk 0:00:47.8]} 31. Qa4 {[%clk 0:00:13.4]} 31... Re1 {[%clk 0:00:37.9]}
32. Nd4 {[%clk 0:00:14.3]} 32... Rxf1+ {[%clk 0:00:38.1]} 33. Kxf1 {[%clk
0:00:16.2]} 33... Qe4 {[%clk 0:00:35.4]} 34. Qxa6 {[%clk 0:00:12.9]} 34... Qb1+
{[%clk 0:00:35.7]} 35. Ke2 {[%clk 0:00:13.6]} 35... Qb2+ {[%clk 0:00:36.1]} 36.
Kd3 {[%clk 0:00:12.7]} 36... Qxf2 {[%clk 0:00:37.2]} 37. Qxc6 {[%clk 0:00:14.1]}
37... Qxg3+ {[%clk 0:00:37.3]} 38. Qf3 {[%clk 0:00:15.3]} 38... Qxf3+ {[%clk
0:00:37.8]} 39. Nxf3 {[%clk 0:00:15.8]} 39... Nd7 {[%clk 0:00:37.1]} 40. Kd4
{[%clk 0:00:17.7]} 40... Kf6 {[%clk 0:00:36.6]} 41. Kd5 {[%clk 0:00:18.7]} 41...
Nb8 {[%clk 0:00:36.1]} 42. c4 {[%clk 0:00:19.2]} 42... Ke7 {[%clk 0:00:37.1]}
43. Ne5 {[%clk 0:00:19.6]} 43... h5 {[%clk 0:00:35.8]} 44. c5 {[%clk 0:00:20]}
44... g5 {[%clk 0:00:32]} 45. Nf3 {[%clk 0:00:21]} 45... f6 {[%clk 0:00:32.9]}
46. Nd4 {[%clk 0:00:21.9]} 46... h4 {[%clk 0:00:31.1]} 47. Nf5+ {[%clk
0:00:22.4]} 47... Kd7 {[%clk 0:00:32.1]} 48. Ne3 {[%clk 0:00:21.4]} 48... c6+
{[%clk 0:00:33]} 49. Ke4 {[%clk 0:00:21.8]} 49... Na6 {[%clk 0:00:34.1]} 50. Kd4
{[%clk 0:00:21.8]} 50... Ke6 {[%clk 0:00:35.1]} 51. Nc4 {[%clk 0:00:21.7]} 51...
g4 {[%clk 0:00:34.9]} 52. Ne3 {[%clk 0:00:22.6]} 52... f5 {[%clk 0:00:35.4]} 53.
Kc4 {[%clk 0:00:22.3]} 53... h3 {[%clk 0:00:34.6]} 54. gxh3 {[%clk 0:00:23]}
54... gxh3 {[%clk 0:00:35.5]} 55. Nf1 {[%clk 0:00:24.9]} 55... Ke5 {[%clk
0:00:36.8]} 56. Nh2 {[%clk 0:00:24.2]} 56... Kf4 {[%clk 0:00:38.1]} 57. Kd3
{[%clk 0:00:26.1]} 57... Kg3 {[%clk 0:00:39]} 58. Kd4 {[%clk 0:00:28]} 58...
Kxh2 {[%clk 0:00:39.8]} 59. Ke5 {[%clk 0:00:29.9]} 0-1

[Event "*** Titled Tuesday Blitz"]
[Site "Chess.com"]
[Date "2018.08.07"]
[Round "2"]
[White "Hrant_ChessMood"]
[Black "pultineviciuspaulius"]
[Result "1-0"]
[WhiteElo "3001"]
[BlackElo "2569"]
[TimeControl "180+2"]
[EndTime "13:22:22 PDT"]
[Termination "Hrant_ChessMood won by resignation"]

1. d4 {[%clk 0:02:30]} 1... f6 {[%clk 0:03:00.2]} 2. e4 {[%clk 0:02:29.1]} 2...
g6 {[%clk 0:02:55]} 3. Nc3 {[%clk 0:02:28.6]} 3... Bg7 {[%clk 0:02:54.7]} 4. Nf3
{[%clk 0:02:28.3]} 4... e6 {[%clk 0:02:54.4]} 5. Be3 {[%clk 0:02:26.7]} 5... d5
{[%clk 0:02:54]} 6. e5 {[%clk 0:02:21.2]} 6... fxe5 {[%clk 0:02:36.8]} 7. Nxe5
{[%clk 0:02:23.1]} 7... Nd7 {[%clk 0:02:25.2]} 8. Nf3 {[%clk 0:02:14.5]} 8...
Nh6 {[%clk 0:02:20.3]} 9. Bg5 {[%clk 0:02:10.7]} 9... Nf6 {[%clk 0:02:20.4]} 10.
Bd3 {[%clk 0:02:08.5]} 10... O-O {[%clk 0:02:16.6]} 11. O-O {[%clk 0:02:08.9]}
11... Nf7 {[%clk 0:02:11.5]} 12. Bh4 {[%clk 0:02:09.7]} 12... c5 {[%clk
0:01:55.1]} 13. dxc5 {[%clk 0:01:50.5]} 13... Qa5 {[%clk 0:01:51.1]} 14. Nb5
{[%clk 0:01:30.3]} 14... a6 {[%clk 0:01:42.6]} 15. Nd6 {[%clk 0:01:26.7]} 15...
Qxc5 {[%clk 0:01:38.5]} 16. Nxf7 {[%clk 0:01:27.6]} 16... Rxf7 {[%clk
0:01:34.3]} 17. Ne5 {[%clk 0:01:29.5]} 17... Rf8 {[%clk 0:01:34.6]} 18. Qe2
{[%clk 0:01:29.4]} 18... Nh5 {[%clk 0:01:20.6]} 19. Bg3 {[%clk 0:01:20.8]} 19...
Nxg3 {[%clk 0:01:10.8]} 20. hxg3 {[%clk 0:01:22.7]} 20... Qd4 {[%clk 0:01:11.1]}
21. Rae1 {[%clk 0:00:42.4]} 21... Qxb2 {[%clk 0:01:11.2]} 22. a4 {[%clk
0:00:39.6]} 22... Qd4 {[%clk 0:01:07.6]} 23. a5 {[%clk 0:00:38]} 23... Qxe5
{[%clk 0:01:03.4]} 24. Qxe5 {[%clk 0:00:38.6]} 24... Bxe5 {[%clk 0:01:05.3]} 25.
Rxe5 {[%clk 0:00:40.1]} 25... Kg7 {[%clk 0:01:07.2]} 26. Rb1 {[%clk 0:00:40.3]}
26... Kf6 {[%clk 0:01:07.1]} 27. f4 {[%clk 0:00:41.1]} 27... Rd8 {[%clk
0:01:01.3]} 28. Rb6 {[%clk 0:00:40.2]} 28... Ke7 {[%clk 0:01:02.7]} 29. Kf2
{[%clk 0:00:40.6]} 29... Rd6 {[%clk 0:01:03.3]} 30. Rb1 {[%clk 0:00:41.1]} 30...
Rc6 {[%clk 0:01:00.2]} 31. Rh1 {[%clk 0:00:40.2]} 31... Rc5 {[%clk 0:00:46.4]}
32. Rxh7+ {[%clk 0:00:40.5]} 32... Kd6 {[%clk 0:00:47.8]} 33. Bxg6 {[%clk
0:00:40.9]} 33... Rxa5 {[%clk 0:00:49.1]} 34. g4 {[%clk 0:00:41.9]} 34... Rc5
{[%clk 0:00:50.4]} 35. g5 {[%clk 0:00:42.5]} 35... a5 {[%clk 0:00:52]} 36. Bd3
{[%clk 0:00:40.7]} 36... a4 {[%clk 0:00:52.9]} 37. g6 {[%clk 0:00:38]} 37... a3
{[%clk 0:00:47.3]} 38. g7 {[%clk 0:00:38.9]} 38... Bd7 {[%clk 0:00:48.7]} 39.
Rh8 {[%clk 0:00:39.7]} 39... Rcc8 {[%clk 0:00:50.2]} 40. Rxc8 {[%clk 0:00:34.1]}
40... Rxc8 {[%clk 0:00:51.1]} 41. Bh7 {[%clk 0:00:35.6]} 41... Ba4 {[%clk
0:00:23.7]} 42. g8=Q {[%clk 0:00:25.9]} 42... Rxg8 {[%clk 0:00:24.6]} 43. Bxg8
{[%clk 0:00:27.8]} 43... Bxc2 {[%clk 0:00:25.4]} 44. Rxe6+ {[%clk 0:00:27.8]}
44... Kc5 {[%clk 0:00:26.4]} 45. Re1 {[%clk 0:00:21.4]} 45... a2 {[%clk
0:00:24.7]} 46. Ra1 {[%clk 0:00:19]} 46... Bb1 {[%clk 0:00:25.8]} 47. f5 {[%clk
0:00:20.4]} 47... Kb4 {[%clk 0:00:03.3]} 48. Bxd5 {[%clk 0:00:19.7]} 48... Ka3
{[%clk 0:00:05.2]} 49. f6 {[%clk 0:00:20.4]} 49... Kb2 {[%clk 0:00:07.1]} 50.
Rxa2+ {[%clk 0:00:21.1]} 50... Bxa2 {[%clk 0:00:07.8]} 51. Bxa2 {[%clk 0:00:23]}
1-0

[Event "*** Titled Tuesday Blitz"]
[Site "Chess.com"]
[Date "2018.08.07"]
[Round "2"]
[White "NormWeinstein"]
[Black "MateusViageiro"]
[Result "0-1"]
[WhiteElo "2392"]
[BlackElo "2324"]
[TimeControl "180+2"]
[EndTime "13:22:26 PDT"]
[Termination "MateusViageiro won on time"]

1. e4 {[%clk 0:03:01.9]} 1... e5 {[%clk 0:03:00]} 2. Nf3 {[%clk 0:03:02.2]} 2...
Nc6 {[%clk 0:03:00.5]} 3. Bb5 {[%clk 0:03:02.5]} 3... a6 {[%clk 0:03:00.8]} 4.
Ba4 {[%clk 0:03:03.1]} 4... Nf6 {[%clk 0:03:01.5]} 5. O-O {[%clk 0:03:03.2]}
5... b5 {[%clk 0:03:02]} 6. Bb3 {[%clk 0:03:03.2]} 6... Be7 {[%clk 0:03:03]} 7.
d4 {[%clk 0:03:03.1]} 7... d6 {[%clk 0:03:00]} 8. c3 {[%clk 0:03:02.8]} 8... O-O
{[%clk 0:03:00.8]} 9. h3 {[%clk 0:03:02.8]} 9... Bb7 {[%clk 0:03:00.1]} 10. Re1
{[%clk 0:02:57]} 10... exd4 {[%clk 0:02:55.7]} 11. cxd4 {[%clk 0:02:56.8]} 11...
Nd7 {[%clk 0:02:55.7]} 12. Nc3 {[%clk 0:02:53.6]} 12... Bf6 {[%clk 0:02:56.3]}
13. Be3 {[%clk 0:02:49.6]} 13... Na5 {[%clk 0:02:55]} 14. Bc2 {[%clk 0:02:50.2]}
14... Nc4 {[%clk 0:02:55.9]} 15. Bc1 {[%clk 0:02:50.7]} 15... Re8 {[%clk
0:02:52.6]} 16. b3 {[%clk 0:02:49.6]} 16... Ncb6 {[%clk 0:02:52.7]} 17. Qd3
{[%clk 0:02:26.6]} 17... g6 {[%clk 0:02:52.4]} 18. Bb2 {[%clk 0:01:58.7]} 18...
c5 {[%clk 0:02:53]} 19. d5 {[%clk 0:01:37.5]} 19... c4 {[%clk 0:02:51.4]} 20.
Qd1 {[%clk 0:00:57.3]} 20... b4 {[%clk 0:02:49.5]} 21. Na4 {[%clk 0:00:58.1]}
21... c3 {[%clk 0:02:28.9]} 22. Bc1 {[%clk 0:00:50.8]} 22... Nxa4 {[%clk
0:02:29]} 23. bxa4 {[%clk 0:00:51.5]} 23... a5 {[%clk 0:02:29.1]} 24. Bf4 {[%clk
0:00:47.3]} 24... Nc5 {[%clk 0:02:28.2]} 25. Nd4 {[%clk 0:00:32.7]} 25... Qd7
{[%clk 0:02:15.8]} 26. Nb5 {[%clk 0:00:32.1]} 26... Be5 {[%clk 0:02:15.4]} 27.
Bxe5 {[%clk 0:00:33]} 27... dxe5 {[%clk 0:02:11.4]} 28. Qf3 {[%clk 0:00:28.2]}
28... Ba6 {[%clk 0:02:10.9]} 29. Rad1 {[%clk 0:00:25.1]} 29... Bxb5 {[%clk
0:02:09.9]} 30. axb5 {[%clk 0:00:25.4]} 30... Qxb5 {[%clk 0:02:11]} 31. d6
{[%clk 0:00:25.4]} 31... a4 {[%clk 0:02:11.1]} 32. Rd5 {[%clk 0:00:26]} 32...
Qc6 {[%clk 0:02:08.2]} 33. Qg3 {[%clk 0:00:22.6]} 33... b3 {[%clk 0:02:06.1]}
34. axb3 {[%clk 0:00:22.7]} 34... axb3 {[%clk 0:02:07.9]} 35. Rxc5 {[%clk
0:00:22.4]} 35... Qxc5 {[%clk 0:02:07.4]} 36. Bxb3 {[%clk 0:00:23.7]} 36... Qxd6
{[%clk 0:02:05.9]} 37. Qxc3 {[%clk 0:00:22.4]} 37... Ra3 {[%clk 0:02:02.9]} 38.
Qc4 {[%clk 0:00:21.2]} 38... Re7 {[%clk 0:02:00.5]} 39. Re3 {[%clk 0:00:22.2]}
39... Kg7 {[%clk 0:02:01]} 40. Rf3 {[%clk 0:00:22.3]} 40... Raa7 {[%clk
0:01:58.5]} 41. Kh2 {[%clk 0:00:20.6]} 41... Qb8 {[%clk 0:01:53.1]} 42. Qe2
{[%clk 0:00:19.7]} 42... Ra3 {[%clk 0:01:53.1]} 43. Bd5 {[%clk 0:00:19.7]} 43...
Rxf3 {[%clk 0:01:53.3]} 44. Qxf3 {[%clk 0:00:20.8]} 44... Qd6 {[%clk 0:01:54.4]}
45. Qg3 {[%clk 0:00:21.4]} 45... f5 {[%clk 0:01:54.1]} 46. Qg5 {[%clk
0:00:20.1]} 46... fxe4 {[%clk 0:01:53.1]} 47. Bxe4 {[%clk 0:00:20.3]} 47... Qf6
{[%clk 0:01:54.1]} 48. Qe3 {[%clk 0:00:20]} 48... h5 {[%clk 0:01:53.1]} 49. g3
{[%clk 0:00:19.3]} 49... h4 {[%clk 0:01:53.5]} 50. Kg2 {[%clk 0:00:18.3]} 50...
hxg3 {[%clk 0:01:49.7]} 51. fxg3 {[%clk 0:00:18.9]} 51... Rf7 {[%clk 0:01:49.8]}
52. Bf3 {[%clk 0:00:16.2]} 52... Qe6 {[%clk 0:01:47.8]} 53. h4 {[%clk
0:00:12.8]} 53... Rc7 {[%clk 0:01:48]} 54. Be4 {[%clk 0:00:09.8]} 54... Qa2+
{[%clk 0:01:46.1]} 55. Kh3 {[%clk 0:00:09.8]} 55... Ra7 {[%clk 0:01:42.3]} 56.
Qc5 {[%clk 0:00:07.7]} 56... Qe6+ {[%clk 0:01:42.2]} 57. g4 {[%clk 0:00:04.3]}
57... Qb3+ {[%clk 0:01:41.7]} 58. Kh2 {[%clk 0:00:03.2]} 58... Qb2+ {[%clk
0:01:33.3]} 59. Bg2 {[%clk 0:00:03.7]} 59... Qd4 {[%clk 0:01:31.7]} 60. Qc6
{[%clk 0:00:02.9]} 60... Qf4+ {[%clk 0:01:31.4]} 61. Kg1 {[%clk 0:00:03.6]}
61... Ra1+ {[%clk 0:01:29.6]} 0-1

[Event "*** Titled Tuesday Blitz"]
[Site "Chess.com"]
[Date "2018.08.07"]
[Round "2"]
[White "GMHess"]
[Black "MITerryble"]
[Result "0-1"]
[WhiteElo "2624"]
[BlackElo "2762"]
[TimeControl "180+2"]
[EndTime "13:22:31 PDT"]
[Termination "MITerryble won by resignation"]

1. d4 {[%clk 0:03:01.9]} 1... e6 {[%clk 0:03:00.6]} 2. e4 {[%clk 0:03:00.3]}
2... d5 {[%clk 0:03:00.9]} 3. Nc3 {[%clk 0:03:00.9]} 3... Nf6 {[%clk 0:03:01.4]}
4. Bg5 {[%clk 0:03:00.2]} 4... Bb4 {[%clk 0:03:01.1]} 5. exd5 {[%clk 0:03:01.2]}
5... Qxd5 {[%clk 0:03:01.4]} 6. Bxf6 {[%clk 0:03:01.3]} 6... Bxc3+ {[%clk
0:03:02.3]} 7. bxc3 {[%clk 0:03:01.9]} 7... gxf6 {[%clk 0:03:04.1]} 8. Nf3
{[%clk 0:02:54.9]} 8... Qa5 {[%clk 0:03:03.7]} 9. Qd2 {[%clk 0:02:52.8]} 9...
Bd7 {[%clk 0:02:59.7]} 10. Be2 {[%clk 0:02:43.8]} 10... Bc6 {[%clk 0:02:59.5]}
11. O-O {[%clk 0:02:44.4]} 11... Nd7 {[%clk 0:02:58.5]} 12. c4 {[%clk
0:02:05.6]} 12... Qxd2 {[%clk 0:02:54.7]} 13. Nxd2 {[%clk 0:02:07.5]} 13...
O-O-O {[%clk 0:02:55.9]} 14. Bh5 {[%clk 0:01:59.2]} 14... Rhg8 {[%clk
0:02:54.2]} 15. g3 {[%clk 0:01:58.3]} 15... Rg7 {[%clk 0:02:54.9]} 16. Rfe1
{[%clk 0:01:26.3]} 16... f5 {[%clk 0:02:33.3]} 17. c3 {[%clk 0:01:11.5]} 17...
Nf6 {[%clk 0:02:33.4]} 18. Bf3 {[%clk 0:01:11.8]} 18... Bxf3 {[%clk 0:02:32.9]}
19. Nxf3 {[%clk 0:01:13.7]} 19... Ne4 {[%clk 0:02:34.3]} 20. Re3 {[%clk
0:01:13.2]} 20... Rd6 {[%clk 0:02:22.9]} 21. Ne5 {[%clk 0:00:59.1]} 21... Ra6
{[%clk 0:02:21.7]} 22. f3 {[%clk 0:00:47]} 22... Nf6 {[%clk 0:02:18]} 23. a4
{[%clk 0:00:40.1]} 23... f4 {[%clk 0:02:18.3]} 24. Re2 {[%clk 0:00:35.8]} 24...
fxg3 {[%clk 0:02:19.1]} 25. hxg3 {[%clk 0:00:34.9]} 25... Nh5 {[%clk 0:02:14.4]}
26. Rg2 {[%clk 0:00:23.8]} 26... f6 {[%clk 0:02:12.3]} 27. Nd3 {[%clk
0:00:21.5]} 27... Rxg3 {[%clk 0:02:10.7]} 28. Kf2 {[%clk 0:00:11.6]} 28... Rxg2+
{[%clk 0:02:10.8]} 29. Kxg2 {[%clk 0:00:13.5]} 29... Ra5 {[%clk 0:02:07.6]} 30.
Kf2 {[%clk 0:00:10.5]} 30... Rf5 {[%clk 0:02:04.7]} 31. Rh1 {[%clk 0:00:10.7]}
31... b6 {[%clk 0:01:44.3]} 32. Ke3 {[%clk 0:00:11.5]} 32... Kd8 {[%clk
0:01:45.3]} 33. Nb4 {[%clk 0:00:07]} 33... a5 {[%clk 0:01:42.6]} 34. Nd3 {[%clk
0:00:06.9]} 34... Ke7 {[%clk 0:01:43.1]} 35. Nf2 {[%clk 0:00:08.1]} 35... Kf7
{[%clk 0:01:42.3]} 36. Ne4 {[%clk 0:00:08.7]} 36... Kg7 {[%clk 0:01:37.7]} 37.
Rg1+ {[%clk 0:00:09.6]} 37... Kf7 {[%clk 0:01:38.2]} 38. Rh1 {[%clk 0:00:10.4]}
38... Kg8 {[%clk 0:01:31.5]} 39. c5 {[%clk 0:00:11.2]} 39... Nf4 {[%clk
0:01:29.7]} 40. Rg1+ {[%clk 0:00:09.5]} 40... Kf8 {[%clk 0:01:28.8]} 41. cxb6
{[%clk 0:00:09.7]} 41... Nd5+ {[%clk 0:01:29.6]} 42. Ke2 {[%clk 0:00:08.7]}
42... Nxb6 {[%clk 0:01:23.1]} 43. Nc5 {[%clk 0:00:09.7]} 43... e5 {[%clk
0:01:18.2]} 44. Rh1 {[%clk 0:00:08.7]} 44... h5 {[%clk 0:01:16.6]} 45. Ke3
{[%clk 0:00:06.7]} 45... exd4+ {[%clk 0:01:16.1]} 46. cxd4 {[%clk 0:00:08.6]}
46... Kf7 {[%clk 0:01:16.4]} 47. Ke4 {[%clk 0:00:09.1]} 47... Rd5 {[%clk
0:01:09.6]} 48. Rc1 {[%clk 0:00:10.1]} 48... h4 {[%clk 0:00:57.9]} 49. Nb7
{[%clk 0:00:07.6]} 49... Rh5 {[%clk 0:00:57]} 50. Rxc7+ {[%clk 0:00:07.9]} 50...
Kg6 {[%clk 0:00:58.1]} 51. Rc1 {[%clk 0:00:08.2]} 51... h3 {[%clk 0:00:58.1]}
52. Rg1+ {[%clk 0:00:07.4]} 52... Kf7 {[%clk 0:00:57.8]} 53. Rh1 {[%clk
0:00:06.2]} 53... Nxa4 {[%clk 0:00:56.7]} 54. d5 {[%clk 0:00:07.4]} 54... Nc3+
{[%clk 0:00:57]} 55. Kd4 {[%clk 0:00:07.2]} 55... Ne2+ {[%clk 0:00:57.3]} 56.
Ke3 {[%clk 0:00:08]} 56... Ng3 {[%clk 0:00:58.4]} 57. d6 {[%clk 0:00:08.7]}
57... Nxh1 {[%clk 0:00:56.3]} 58. d7 {[%clk 0:00:09.9]} 58... Rh8 {[%clk
0:00:57.4]} 59. d8=Q {[%clk 0:00:10.9]} 59... Rxd8 {[%clk 0:00:57.7]} 60. Nxd8+
{[%clk 0:00:12.8]} 60... Ke8 {[%clk 0:00:58.8]} 61. Nb7 {[%clk 0:00:13.6]} 61...
h2 {[%clk 0:00:58.6]} 0-1

[Event "*** Titled Tuesday Blitz"]
[Site "Chess.com"]
[Date "2018.08.07"]
[Round "2"]
[White "Arystanner23"]
[Black "Zaven_ChessMood"]
[Result "0-1"]
[WhiteElo "2568"]
[BlackElo "2897"]
[TimeControl "180+2"]
[EndTime "13:22:41 PDT"]
[Termination "Zaven_ChessMood won by resignation"]

1. e4 {[%clk 0:03:01.3]} 1... c5 {[%clk 0:02:58.1]} 2. Nf3 {[%clk 0:03:02.4]}
2... d6 {[%clk 0:02:59.1]} 3. d4 {[%clk 0:03:03.5]} 3... cxd4 {[%clk 0:03:00]}
4. Qxd4 {[%clk 0:03:05.4]} 4... Nf6 {[%clk 0:03:01.6]} 5. Bb5+ {[%clk
0:03:06.3]} 5... Bd7 {[%clk 0:03:01.8]} 6. c4 {[%clk 0:03:06.2]} 6... Nc6 {[%clk
0:03:00.2]} 7. Qd3 {[%clk 0:03:07.2]} 7... g6 {[%clk 0:03:00.7]} 8. h3 {[%clk
0:03:07.8]} 8... Bg7 {[%clk 0:03:01.8]} 9. Nc3 {[%clk 0:03:08.4]} 9... O-O
{[%clk 0:03:02.7]} 10. O-O {[%clk 0:03:09.6]} 10... a6 {[%clk 0:03:03.7]} 11.
Bxc6 {[%clk 0:03:10.5]} 11... Bxc6 {[%clk 0:03:05.2]} 12. Nd4 {[%clk 0:03:11.5]}
12... Nd7 {[%clk 0:03:04.5]} 13. Be3 {[%clk 0:03:10.8]} 13... Rc8 {[%clk
0:03:03.7]} 14. Rac1 {[%clk 0:03:10.9]} 14... Nc5 {[%clk 0:02:58.8]} 15. Qc2
{[%clk 0:03:11.5]} 15... Ne6 {[%clk 0:02:59.1]} 16. Nxe6 {[%clk 0:03:12.4]}
16... fxe6 {[%clk 0:03:00.7]} 17. Qb3 {[%clk 0:03:13.6]} 17... Qd7 {[%clk
0:02:56.4]} 18. f3 {[%clk 0:03:07.5]} 18... b5 {[%clk 0:02:55]} 19. cxb5 {[%clk
0:03:08.7]} 19... axb5 {[%clk 0:02:54.3]} 20. a3 {[%clk 0:03:02.6]} 20... Rb8
{[%clk 0:02:52.8]} 21. Ne2 {[%clk 0:02:45.2]} 21... Rfc8 {[%clk 0:02:50.4]} 22.
Nd4 {[%clk 0:02:38]} 22... Kf7 {[%clk 0:02:39.4]} 23. Nxc6 {[%clk 0:02:37.2]}
23... Rxc6 {[%clk 0:02:40.2]} 24. Rxc6 {[%clk 0:02:38.8]} 24... Qxc6 {[%clk
0:02:41.7]} 25. Rc1 {[%clk 0:02:40]} 25... Qd7 {[%clk 0:02:41.6]} 26. Kh1 {[%clk
0:02:22.3]} 26... Bf6 {[%clk 0:02:42]} 27. f4 {[%clk 0:02:12.9]} 27... d5 {[%clk
0:02:36.7]} 28. e5 {[%clk 0:02:12.3]} 28... Bg7 {[%clk 0:02:37.2]} 29. Bd4
{[%clk 0:02:12.1]} 29... h5 {[%clk 0:02:37]} 30. Rc5 {[%clk 0:02:09.3]} 30...
Bh6 {[%clk 0:02:31.8]} 31. Qc3 {[%clk 0:01:59.2]} 31... b4 {[%clk 0:02:29]} 32.
axb4 {[%clk 0:01:55.9]} 32... Qa4 {[%clk 0:02:29.9]} 33. g3 {[%clk 0:01:27.1]}
33... Rxb4 {[%clk 0:02:29.3]} 34. Bf2 {[%clk 0:01:17.2]} 34... Rb3 {[%clk
0:02:29.4]} 35. Qc2 {[%clk 0:01:11.6]} 35... Qa1+ {[%clk 0:02:30.3]} 36. Qc1
{[%clk 0:01:01.3]} 36... Qxc1+ {[%clk 0:02:28.1]} 37. Rxc1 {[%clk 0:01:03.2]}
37... h4 {[%clk 0:02:29.8]} 38. Kg2 {[%clk 0:00:58.9]} 38... hxg3 {[%clk
0:02:28.1]} 39. Bxg3 {[%clk 0:00:59.9]} 39... Rxb2+ {[%clk 0:02:29.2]} 40. Kf3
{[%clk 0:01:01.2]} 40... Rb3+ {[%clk 0:02:30.5]} 41. Kg4 {[%clk 0:01:00.4]}
41... Rb4 {[%clk 0:02:31.2]} 42. h4 {[%clk 0:01:00.8]} 42... Bg7 {[%clk
0:02:30.6]} 43. Rc7 {[%clk 0:00:56.1]} 43... Bxe5 {[%clk 0:02:30.6]} 44. Rd7
{[%clk 0:00:57.5]} 44... Bd6 {[%clk 0:02:28.2]} 45. Kf3 {[%clk 0:00:56.8]} 45...
Rb3+ {[%clk 0:02:25.6]} 46. Kg4 {[%clk 0:00:57.6]} 46... d4 {[%clk 0:02:25.2]}
47. Bf2 {[%clk 0:00:54.5]} 47... d3 {[%clk 0:02:16.1]} 48. Be3 {[%clk
0:00:54.5]} 48... Rb1 {[%clk 0:02:11.4]} 49. Kf3 {[%clk 0:00:41.7]} 49... Rf1+
{[%clk 0:02:11.3]} 50. Ke4 {[%clk 0:00:42.4]} 50... Rh1 {[%clk 0:02:05.8]} 51.
Kxd3 {[%clk 0:00:41.1]} 51... Rxh4 {[%clk 0:02:06.7]} 52. Rb7 {[%clk 0:00:28.4]}
52... Bxf4 {[%clk 0:02:04.3]} 53. Bc5 {[%clk 0:00:25.3]} 53... Bg5 {[%clk
0:02:04.9]} 54. Ke2 {[%clk 0:00:26.2]} 54... Bf6 {[%clk 0:02:05.1]} 55. Kf3
{[%clk 0:00:26.8]} 55... Rc4 {[%clk 0:02:05.1]} 56. Bb4 {[%clk 0:00:25.9]} 56...
e5 {[%clk 0:02:05.8]} 57. Ke2 {[%clk 0:00:25.1]} 57... Ke6 {[%clk 0:02:04.6]}
58. Bd2 {[%clk 0:00:25.7]} 58... g5 {[%clk 0:02:05]} 59. Rb8 {[%clk 0:00:26.1]}
59... Kf5 {[%clk 0:02:05.8]} 60. Rg8 {[%clk 0:00:26.9]} 60... e4 {[%clk
0:02:06.9]} 61. Be3 {[%clk 0:00:26.4]} 61... Rc2+ {[%clk 0:02:07.8]} 62. Kd1
{[%clk 0:00:27.9]} 62... Ra2 {[%clk 0:02:08.9]} 63. Bd2 {[%clk 0:00:28]} 63...
Ra3 {[%clk 0:02:04.3]} 64. Ke2 {[%clk 0:00:27.5]} 64... Rh3 {[%clk 0:02:05.1]}
65. Rc8 {[%clk 0:00:25.8]} 65... Rh2+ {[%clk 0:02:05.4]} 66. Kd1 {[%clk
0:00:26.6]} 66... g4 {[%clk 0:02:03.5]} 67. Rc5+ {[%clk 0:00:26.6]} 67... e5
{[%clk 0:02:04.5]} 68. Rc3 {[%clk 0:00:24.1]} 68... Bg5 {[%clk 0:02:04.9]} 69.
Be1 {[%clk 0:00:23]} 69... Bf4 {[%clk 0:02:05.7]} 70. Rc8 {[%clk 0:00:22.5]}
70... e3 {[%clk 0:02:06.7]} 71. Rf8+ {[%clk 0:00:22.5]} 71... Ke4 {[%clk
0:02:08]} 72. Ra8 {[%clk 0:00:23.2]} 72... Rb2 {[%clk 0:02:07.7]} 0-1